bitfinex/quotes_ETHUSD_20250428
["timestamp","ask_amount","ask_price","bid_price","bid_amount"]
[1745864583383,9.03932944,1769.7,1769.6,14.5]
[1745864586359,8.21757222,1769.7,1769.6,14.5]
[1745864586797,4.95351268,1769.7,1769.6,14.5]
[1745864586953,0.67420923,1770.0,1769.6,15.2831]
[1745864587285,4.958,1769.9,1769.6,20.93384215]
[1745864587454,4.958,1769.9,1769.6,23.59233996]
[1745864587660,4.958,1769.9,1769.6,29.24310961]
[1745864588184,4.958,1769.9,1769.6,23.59233996]
[1745864589687,17.2061,1770.3,1770.0,5.64967391]
[1745864589882,17.2061,1770.3,1769.6,20.18045735]
[1745864589883,4.958,1770.1,1769.9,5.64976194]
[1745864590183,4.958,1770.1,1770.0,0.7799]
[1745864592128,4.958,1770.1,1770.0,6.42961751]
[1745864592296,4.958,1770.1,1770.0,0.7799]
[1745864592497,4.958,1770.2,1770.0,6.42961751]
[1745864593330,4.958,1770.2,1770.1,14.5]
[1745864594439,4.958,1770.2,1770.1,22.24236008]
[1745864595036,4.958,1770.2,1770.1,22.24220543]
[1745864595565,16.964,1770.3,1770.2,0.7762]
[1745864595713,16.964,1770.3,1770.2,6.4252792]
[1745864595916,4.958,1770.4,1770.3,5.64876009]
[1745864596137,4.958,1770.4,1770.3,6.85616402]
[1745864597346,4.958,1770.4,1770.3,1.20740393]
[1745864597510,4.958,1770.4,1770.3,6.85616402]
[1745864598247,4.958,1770.4,1770.3,1.20740393]
[1745864598845,4.958,1770.4,1770.3,6.85616402]
[1745864599145,4.958,1770.4,1770.3,21.35616402]
[1745864599844,4.957,1770.6,1770.4,6.40632012]
[1745864600045,4.957,1770.6,1770.5,6.288754]
[1745864600257,4.957,1770.7,1770.5,11.93666937]
[1745864600465,4.957,1770.7,1770.6,5.647803]
[1745864600612,4.957,1770.7,1770.6,20.147803]
[1745864600818,4.957,1770.7,1770.6,20.979403]
[1745864601019,4.957,1770.7,1770.6,23.70619804]
[1745864601373,1e-08,1770.8,1770.7,7.02908404]
[1745864601653,4.953,1771.5,1771.3,5.64539844]
[1745864601860,4.953,1771.5,1771.3,5.64546763]
[1745864602153,4.953,1771.5,1771.3,5.64540309]
[1745864602357,4.953,1771.5,1771.4,14.5]
[1745864605434,4.953,1771.5,1771.2,6.4773646]
[1745864605760,4.953,1771.5,1771.3,0.64773646]
[1745864605947,4.953,1771.5,1771.4,14.5]
[1745864607157,4.953,1771.5,1771.4,14.94066545]
[1745864607926,8.1951,1771.5,1771.4,14.94066545]
[1745864608750,8.1951,1771.5,1771.4,0.44066545]
[1745864608950,9.57267067,1771.5,1771.4,0.44066545]
[1745864609556,15.21760434,1771.5,1771.4,0.44066545]
[1745864610134,9.57267067,1771.5,1771.4,0.44066545]
[1745864610545,15.21760434,1771.5,1771.4,0.44066545]
[1745864611046,9.57267067,1771.5,1771.4,0.44066545]
[1745864611247,15.21760434,1771.5,1771.4,0.44066545]
[1745864611559,10.26460434,1771.5,1771.4,0.44066545]
[1745864611756,4.95,1771.7,1771.4,0.44066545]
[1745864614658,4.95,1771.7,1771.5,0.8251]
[1745864615250,16.961,1772.1,1771.5,0.8251]
[1745864615448,16.961,1772.1,1771.6,14.5]
[1745864615449,4.95,1772.0,1771.6,14.5]
[1745864615683,4.95,1772.0,1771.6,22.24148963]
[1745864615962,4.95,1772.0,1771.6,16.59698097]
[1745864616164,3.2421,1771.9,1771.6,14.5]
[1745864616661,8.82270667,1771.9,1771.6,14.5]
[1745864616841,14.89891046,1771.9,1771.6,14.5]
[1745864617776,14.89891046,1771.9,1771.3,6.8551]
[1745864617979,6.2551985,1771.9,1771.3,6.8551]
[1745864618271,3.0,1771.8,1771.4,14.5]
[1745864618833,10.94006691,1771.9,1771.4,14.5]
[1745864619034,13.58382137,1771.9,1771.4,14.94820521]
[1745864619291,5.35946024,1771.9,1771.4,14.94820521]
[1745864619444,3.67459183,1771.9,1771.4,14.94820521]
[1745864620276,3.0,1771.9,1771.5,0.771]
[1745864620446,4.949,1771.8,1771.5,0.771]
[1745864620848,4.949,1771.8,1771.5,6.41593267]
[1745864621164,4.949,1771.8,1771.5,0.771]
[1745864621364,4.949,1771.8,1771.5,2.90742631]
[1745864623753,4.949,1771.8,1771.5,0.771]
[1745864623954,4.949,1771.8,1771.6,14.5]
[1745864626077,8.1911,1771.8,1771.6,14.5]
[1745864626874,3.01342736,1771.7,1771.6,14.5]
[1745864629186,3.01342736,1771.7,1771.4,0.44820521]
[1745864629877,8.1911,1771.8,1771.5,14.5]
[1745864630580,7.949,1771.8,1771.5,14.5]
[1745864630765,7.949,1771.8,1771.5,15.99482052]
[1745864631574,7.949,1771.8,1771.5,16.75802052]
[1745864633786,26.44068909,1772.1,1771.5,16.75802052]
[1745864633951,7.946,1772.0,1771.5,22.40277521]
[1745864634149,4.946,1771.9,1771.7,0.8235]
[1745864634854,7.946,1771.9,1771.8,14.5]
[1745864642121,7.946,1771.9,1771.8,22.44652787]
[1745864642122,4.946,1771.9,1771.8,22.44652787]
[1745864642422,16.961,1772.1,1772.0,6.41354085]
[1745864642716,4.945,1772.2,1772.0,6.41354085]
[1745864643129,4.945,1772.2,1772.0,6.4133699]
[1745864643297,4.945,1772.2,1772.1,0.64133699]
[1745864643497,4.945,1772.2,1772.1,6.28435939]
[1745864643805,3.37903376,1772.6,1772.1,6.28435939]
[1745864643978,4.945,1772.5,1772.1,6.28435939]
[1745864644183,4.945,1772.5,1772.1,6.28420781]
[1745864644416,4.945,1772.5,1772.3,0.8288]
[1745864645230,4.945,1772.5,1772.2,0.62842078]
[1745864645389,4.945,1772.5,1772.1,0.7539]
[1745864646415,4.945,1772.5,1772.1,6.39685479]
[1745864646608,4.945,1772.5,1772.1,0.7539]
[1745864647026,3.01342736,1772.4,1772.1,0.7539]
[1745864648234,3.01342736,1772.4,1771.9,0.8276]
[1745864648441,3.01342736,1772.4,1771.9,6.47125304]
[1745864648744,3.01342736,1772.2,1772.0,0.6471253]
[1745864648950,3.01342736,1772.2,1771.9,0.8276]
[1745864650141,3.01342736,1772.0,1771.8,16.03235]
[1745864650342,3.01342736,1772.0,1771.8,14.5]
[1745864652511,3.01342736,1772.0,1771.5,7.96033361]
[1745864652737,3.01342736,1772.0,1771.5,2.31542052]
[1745864652942,3.01342736,1772.0,1771.5,0.8206]
[1745864653151,3.01342736,1771.8,1771.6,14.5]
[1745864660765,6.25552736,1772.0,1771.6,14.5]
[1745864665973,4.942,1771.9,1771.6,14.5]
[1745864669843,4.942,1771.9,1771.7,6.39549455]
[1745864670079,4.942,1771.9,1771.8,0.63954945]
[1745864670447,4.942,1771.9,1771.7,0.7513]
[1745864671353,4.942,1771.9,1771.8,5.64397787]
[1745864671548,4.942,1771.9,1771.7,6.39539498]
[1745864673089,4.942,1771.9,1771.7,0.7513]
[1745864673463,4.942,1771.9,1771.8,14.5]
[1745864673671,7.95542736,1771.9,1771.8,14.5]
[1745864677794,4.942,1771.9,1771.8,14.5]
[1745864678615,4.942,1771.9,1771.7,0.7513]
[1745864678902,0.2421,1771.8,1771.4,1.21340521]
[1745864679193,3.01342736,1771.7,1771.5,14.5]
[1745864684903,3.0,1771.8,1771.6,0.8247]
[1745864685104,6.01342736,1771.8,1771.6,0.8247]
[1745864685321,3.0,1771.8,1771.6,0.8247]
[1745864685493,4.942,1771.8,1771.7,14.5]
[1745864686515,4.942,1771.8,1771.7,16.59692669]
[1745864686714,4.942,1771.9,1771.7,22.24122312]
[1745864687404,4.942,1771.9,1771.7,16.59692669]
[1745864691025,4.942,1771.9,1771.7,14.5]
[1745864691026,7.95542736,1771.9,1771.7,14.5]
[1745864691228,8.19752736,1771.9,1771.7,14.5]
[1745864693493,13.84123177,1771.9,1771.7,14.5]
[1745864694314,13.84123177,1771.9,1771.4,1.21700521]
[1745864694315,8.19752736,1771.9,1771.4,1.21700521]
[1745864694624,3.01342736,1771.6,1771.4,1.21700521]
[1745864694826,3.01342736,1771.6,1771.5,14.5]
[1745864695525,3.01342736,1771.6,1771.4,0.44820521]
[1745864695726,4.938,1771.5,1771.4,0.44820521]
[1745864695891,4.938,1771.5,1771.4,14.94820521]
[1745864697733,7.938,1771.5,1771.4,14.94820521]
[1745864699125,7.938,1771.5,1771.4,0.44820521]
[1745864699532,7.938,1771.5,1771.4,16.37977372]
[1745864699737,4.938,1771.5,1771.4,16.37977372]
[1745864701756,4.939,1771.7,1771.5,5.64476292]
[1745864702938,4.939,1771.8,1771.6,0.7588]
[1745864705354,4.939,1771.8,1771.7,14.5]
[1745864706663,5.73424274,1771.8,1771.4,0.44820521]
[1745864706860,3.01342736,1771.6,1771.4,0.44820521]
[1745864707018,3.01342736,1771.6,1771.4,14.94820521]
[1745864707421,3.01342736,1771.6,1771.4,0.44820521]
[1745864707762,3.2421,1771.5,1771.4,0.44820521]
[1745864707917,4.43212607,1771.5,1771.4,0.44820521]
[1745864712053,10.07705974,1771.5,1771.4,0.44820521]
[1745864712954,4.43212607,1771.5,1771.4,0.44820521]
[1745864715359,4.939,1771.5,1771.4,0.44820521]
[1745864716263,4.939,1771.5,1771.4,1.23900521]
[1745864716860,7.95242736,1771.5,1771.4,0.44820521]
[1745864717827,10.95242736,1771.5,1771.4,0.44820521]
[1745864718563,10.95242736,1771.5,1771.4,14.94820521]
[1745864720864,12.63634589,1771.5,1771.4,0.44820521]
[1745864721223,10.95242736,1771.5,1771.4,14.94820521]
[1745864722680,16.83946103,1771.5,1771.4,0.44820521]
[1745864724179,11.19452736,1771.5,1771.4,0.44820521]
[1745864725280,10.95242736,1771.5,1771.4,0.44820521]
[1745864725458,7.95242736,1771.5,1771.4,0.44820521]
[1745864725783,10.95242736,1771.5,1771.4,0.44820521]
[1745864725986,10.94942736,1771.5,1771.4,0.44820521]
[1745864729648,7.94942736,1771.5,1771.4,0.44820521]
[1745864730386,3.01342736,1771.5,1771.4,0.44820521]
[1745864730575,4.936,1771.5,1771.4,1.94302573]
[1745864730973,4.936,1771.5,1771.4,7.58827807]
[1745864731153,4.936,1771.5,1771.4,2.75952573]
[1745864731349,4.936,1771.5,1771.4,8.40477807]
[1745864731583,3.0,1771.8,1771.4,2.75952573]
[1745864731584,4.936,1771.6,1771.4,2.75952573]
[1745864732356,4.936,1771.6,1771.5,14.5]
[1745864732558,4.936,1771.6,1771.5,16.7904766]
[1745864733496,7.94942736,1771.6,1771.5,14.5]
[1745864737668,7.94942736,1771.6,1771.5,15.3143]
[1745864740492,7.94942736,1771.6,1771.5,14.5]
[1745864744003,3.0,1771.5,1771.2,0.8291]
[1745864744175,3.01342736,1771.4,1771.2,0.8291]
[1745864744698,3.01342736,1771.4,1771.2,14.5]
[1745864748449,3.01342736,1771.4,1771.2,15.2935]
[1745864751203,3.01342736,1771.4,1771.2,14.5]
[1745864751413,3.6147701,1771.4,1771.2,14.5]
[1745864751614,3.0,1771.3,1771.2,14.5]
[1745864751797,3.2421,1771.3,1771.2,14.5]
[1745864752128,3.2421,1771.3,1770.9,0.798]
[1745864752326,3.01342736,1771.1,1770.8,0.798]
[1745864752495,4.936,1771.2,1771.0,14.5]
[1745864752828,7.94942736,1771.2,1771.0,14.5]
[1745864755433,7.94942736,1771.2,1770.8,1.48560426]
[1745864755798,3.01342736,1771.0,1770.8,0.798]
[1745864756000,3.01342736,1771.0,1770.9,14.5]
[1745864756521,6.01342736,1771.0,1770.9,14.5]
[1745864757824,6.01342736,1771.0,1770.6,0.798]
[1745864757825,6.25552736,1771.0,1770.6,0.798]
[1745864758404,6.68610535,1771.0,1770.7,14.5]
[1745864760156,7.35471589,1771.0,1770.7,14.5]
[1745864761923,6.01342736,1771.0,1770.7,14.5]
[1745864762115,6.01342736,1771.0,1770.7,20.14735004]
[1745864762323,6.01342736,1771.0,1770.7,14.5]
[1745864763827,6.01342736,1771.0,1770.7,20.14719533]
[1745864764022,3.01342736,1771.0,1770.8,0.7812]
[1745864764223,6.05,1771.1,1770.8,8.52106747]
[1745864764569,6.05,1771.1,1770.9,5.64683303]
[1745864764870,6.05,1771.1,1771.0,6.40042738]
[1745864764871,4.934,1771.1,1771.0,6.40042738]
[1745864765222,4.934,1771.1,1771.0,0.7539]
[1745864768461,4.934,1771.1,1771.0,15.2539]
[1745864771562,4.934,1771.1,1771.0,14.5]
[1745864772829,5.72874274,1771.1,1770.7,0.8296]
[1745864773025,3.01342736,1770.9,1770.6,0.7818]
[1745864773469,3.01342736,1770.9,1770.7,14.5]
[1745864775160,3.0,1770.8,1770.4,0.8166]
[1745864775340,3.01342736,1770.5,1770.4,0.8166]
[1745864775546,7.94642736,1770.7,1770.4,0.8166]
[1745864775759,7.94642736,1770.7,1770.5,14.5]
[1745864780757,4.933,1770.7,1770.5,20.14799359]
[1745864780947,4.933,1770.7,1770.6,0.7559]
[1745864781257,4.933,1770.7,1770.6,6.403703]
[1745864781859,4.933,1770.7,1770.6,0.7559]
[1745864783192,6.05,1771.0,1770.6,6.40357681]
[1745864783354,4.934,1771.0,1770.7,0.771]
[1745864783684,4.934,1771.0,1770.7,6.41827496]
[1745864783982,4.934,1771.0,1770.7,1.97759077]
[1745864784182,3.01342736,1770.9,1770.5,6.48027362]
[1745864784348,3.01342736,1770.9,1770.6,14.5]
[1745864784870,3.01342736,1770.9,1770.6,20.1477736]
[1745864785245,3.01342736,1770.9,1770.6,5.6477736]
[1745864785885,3.01342736,1770.9,1770.6,11.2953618]
[1745864786069,5.1761,1771.0,1770.7,5.64733085]
[1745864786273,5.1761,1771.0,1770.7,20.14733085]
[1745864787351,4.934,1771.0,1770.8,0.8229]
[1745864787959,4.934,1771.0,1770.9,14.5]
[1745864788767,9.33374274,1771.0,1770.9,14.5]
[1745864789179,9.57584274,1771.0,1770.6,0.8099]
[1745864789484,3.01342736,1770.9,1770.6,6.45769302]
[1745864789684,3.01342736,1770.9,1770.7,14.5]
[1745864791095,9.33374274,1771.0,1770.7,20.14745208]
[1745864791294,4.934,1771.0,1770.8,5.64715044]
[1745864791501,4.934,1771.0,1770.8,6.44575044]
[1745864794969,4.934,1771.0,1770.9,14.5]
[1745864795197,4.934,1771.0,1770.9,20.14684623]
[1745864795402,4.934,1771.0,1770.9,14.5]
[1745864798530,8.64685164,1770.9,1770.3,0.762]
[1745864798819,3.01342736,1770.6,1770.3,0.762]
[1745864799114,7.94342736,1770.6,1770.4,14.5]
[1745864804640,7.94342736,1770.6,1770.2,5.64896611]
[1745864804859,7.94342736,1770.6,1770.2,5.64907117]
[1745864805210,7.94342736,1770.6,1770.3,14.5]
[1745864811062,7.94342736,1770.6,1770.3,20.14874977]
[1745864811542,4.93,1770.6,1770.4,0.8094]
[1745864812264,4.93,1770.6,1770.5,14.5]
[1745864812848,6.2921,1770.8,1770.5,14.5]
[1745864813031,6.05,1770.8,1770.7,6.41378404]
[1745864813230,4.931,1770.9,1770.7,12.0610549]
[1745864813430,4.931,1770.9,1770.8,5.64716512]
[1745864813826,4.931,1770.9,1770.8,14.5]
[1745864816070,4.681,1770.9,1770.8,14.5]
[1745864818204,4.681,1770.9,1770.8,20.14716512]
[1745864820995,12.06342736,1771.3,1770.8,20.91156512]
[1745864821193,7.927,1771.2,1771.0,5.64641205]
[1745864821395,4.927,1771.2,1771.1,5.64620857]
[1745864822426,4.927,1771.3,1771.1,5.64620857]
[1745864822732,4.927,1771.3,1771.0,6.41072877]
[1745864823804,4.927,1771.3,1771.0,0.7644]
[1745864824228,4.927,1771.3,1771.1,5.64611888]
[1745864824424,4.927,1771.3,1771.1,0.64105189]
[1745864824629,4.927,1771.3,1771.1,6.28725018]
[1745864824935,4.927,1771.3,1771.1,0.64105189]
[1745864825135,4.927,1771.3,1771.1,6.28707889]
[1745864826104,4.927,1771.3,1771.1,0.64105189]
[1745864826303,4.927,1771.3,1771.1,6.28716604]
[1745864826656,4.927,1771.3,1771.2,0.6287166]
[1745864826855,4.927,1771.3,1771.2,6.27460639]
[1745864827205,4.927,1771.4,1771.3,5.64545369]
[1745864827526,10.976,1771.6,1771.2,7.10682312]
[1745864827731,3.01342736,1771.5,1771.2,1.4611166]
[1745864828047,3.01342736,1771.5,1771.2,0.6287166]
[1745864828262,3.01342736,1771.3,1771.1,0.64105189]
[1745864828403,3.25552736,1771.3,1770.9,5.64667219]
[1745864828749,4.926,1771.2,1770.9,5.64667219]
[1745864830415,4.926,1771.2,1770.8,0.8188]
[1745864830942,3.01342736,1771.1,1770.8,0.8188]
[1745864833046,3.01342736,1771.1,1770.8,6.46590329]
[1745864833246,3.01342736,1771.1,1770.8,7.67721974]
[1745864833844,5.35146698,1771.2,1770.8,7.67721974]
[1745864834146,4.926,1771.2,1770.8,6.46590329]
[1745864834443,4.926,1771.2,1770.8,6.46577051]
[1745864835148,4.926,1771.2,1770.8,6.46594004]
[1745864835350,4.926,1771.2,1770.8,6.46581811]
[1745864835712,4.926,1771.2,1770.8,6.46575329]
[1745864835913,4.926,1771.2,1770.8,7.11232862]
[1745864837035,4.926,1771.2,1770.8,1.46537533]
[1745864838253,4.926,1771.2,1770.8,7.11244571]
[1745864838675,4.926,1771.2,1770.8,0.64657533]
[1745864838958,3.01342736,1771.1,1770.8,5.64706087]
[1745864839849,3.01342736,1771.1,1770.7,5.6472631]
[1745864840235,3.01342736,1771.1,1770.8,5.64705478]
[1745864840958,4.926,1771.2,1770.9,5.64675123]
[1745864841456,4.926,1771.2,1770.8,5.64695962]
[1745864844044,4.926,1771.2,1770.7,5.64734132]
[1745864844246,4.926,1771.2,1770.7,6.8567263]
[1745864844473,3.25552736,1771.1,1770.6,6.44647819]
[1745864845139,3.25552736,1771.1,1770.6,12.09409216]
[1745864845348,3.25552736,1771.1,1770.7,5.64747214]
[1745864845553,3.25552736,1771.1,1770.7,14.5]
[1745864845866,3.25552736,1771.1,1770.7,20.14747914]
[1745864846572,3.25552736,1771.1,1770.7,14.5]
[1745864847160,3.25552736,1771.1,1770.7,20.14733094]
[1745864847476,3.25552736,1771.1,1770.7,22.72680094]
[1745864848967,4.923,1771.0,1770.7,22.72680094]
[1745864851658,4.923,1771.0,1770.7,22.72677249]
[1745864852072,4.923,1771.0,1770.7,28.37406013]
[1745864852370,4.923,1771.0,1770.7,22.72677249]
[1745864852567,4.923,1771.0,1770.8,5.64691393]
[1745864852871,4.923,1771.0,1770.9,5.64684623]
[1745864853562,4.923,1771.0,1770.8,8.66979118]
[1745864855046,4.923,1771.0,1770.8,3.02287725]
[1745864855245,4.923,1771.0,1770.8,2.27267725]
[1745864855486,4.923,1771.0,1770.8,5.64709695]
[1745864855654,4.923,1771.0,1770.9,14.5]
[1745864858444,5.1651,1771.1,1770.9,14.5]
[1745864862391,8.17852736,1771.1,1770.6,6.47047877]
[1745864862557,8.17852736,1771.1,1770.7,5.64748161]
[1745864862981,8.17852736,1771.1,1770.8,14.5]
[1745864866609,3.01342736,1770.9,1770.4,6.46508356]
[1745864866764,0.2421,1770.8,1770.5,5.64801678]
[1745864866968,6.2921,1771.0,1770.7,5.64746781]
[1745864868002,6.05,1771.0,1770.7,6.40126781]
[1745864869099,6.05,1771.0,1770.7,6.40113527]
[1745864869401,6.05,1771.0,1770.8,0.64011353]
[1745864869565,8.17852736,1771.1,1770.7,6.40111424]
[1745864872076,5.1651,1771.1,1770.8,5.64712152]
[1745864872618,4.923,1771.1,1770.8,5.64712152]
[1745864872798,4.923,1771.1,1770.8,5.64701252]
[1745864873123,4.923,1771.1,1770.9,14.5]
[1745864873638,9.30552736,1771.3,1770.9,22.08832561]
[1745864873926,6.2921,1771.5,1771.3,5.64556783]
[1745864874086,4.923,1771.5,1771.2,5.64575909]
[1745864874412,4.923,1771.5,1771.2,11.29142209]
[1745864874591,4.923,1771.5,1771.3,1.12914221]
[1745864874795,4.923,1771.5,1771.3,6.77470539]
[1745864875218,4.923,1771.5,1771.3,1.12914221]
[1745864876823,7.93642736,1771.5,1771.1,6.41573364]
[1745864877730,7.93642736,1771.5,1771.2,5.64588056]
[1745864879036,7.93642736,1771.5,1771.2,5.64573588]
[1745864879217,7.93642736,1771.5,1771.2,11.29140595]
[1745864879545,7.93642736,1771.5,1771.2,11.29137417]
[1745864879689,7.93642736,1771.5,1771.3,1.12913742]
[1745864880297,7.93642736,1771.5,1771.2,5.64566065]
[1745864880497,7.93642736,1771.5,1771.3,14.5]
[1745864885236,4.923,1771.5,1771.3,20.96958054]
[1745864885431,20.21152736,1771.7,1771.3,20.96958054]
[1745864885635,4.919,1771.6,1771.3,20.96958054]
[1745864885834,4.919,1771.6,1771.4,7.74216082]
[1745864886636,4.919,1771.6,1771.5,14.5]
[1745864887842,4.919,1771.6,1771.5,20.14493367]
[1745864888353,4.919,1771.6,1771.5,15.3242]
[1745864889016,4.919,1771.6,1771.5,14.5]
[1745864892857,4.919,1771.6,1771.2,6.43907584]
[1745864893059,4.919,1771.6,1771.2,7.13798342]
[1745864893263,4.919,1771.6,1771.0,0.8283]
[1745864893264,3.25552736,1771.5,1771.0,0.8283]
[1745864893425,3.01342736,1771.3,1770.9,5.64666278]
[1745864893766,3.01342736,1771.3,1770.6,5.64771359]
[1745864893767,3.01342736,1771.1,1770.6,6.47590052]
[1745864893909,3.01342736,1770.9,1770.6,6.47590052]
[1745864894116,3.25552736,1770.9,1770.6,7.12349057]
[1745864894550,3.25552736,1771.1,1770.7,14.5]
[1745864894814,3.25552736,1771.1,1770.7,20.1474564]
[1745864896528,3.25552736,1771.1,1770.7,14.5]
[1745864897049,3.25552736,1771.1,1770.7,20.14747128]
[1745864897351,3.25552736,1771.1,1770.7,20.9363417]
[1745864897533,3.25552736,1771.1,1770.7,15.28887042]
[1745864898213,3.01342736,1770.9,1770.7,14.5]
[1745864898650,4.919,1770.8,1770.7,14.5]
[1745864901314,4.919,1770.8,1770.5,12.05995792]
[1745864901516,4.919,1770.8,1770.5,12.05992085]
[1745864901913,4.919,1770.8,1770.6,14.5]
[1745864905743,5.73645274,1770.8,1770.6,14.5]
[1745864907282,4.919,1770.8,1770.6,14.5]
[1745864908575,4.919,1770.8,1770.4,5.64841453]
[1745864909079,4.919,1770.8,1770.5,14.5]
[1745864914665,4.919,1770.8,1770.5,20.14811626]
[1745864915291,4.919,1770.8,1770.5,20.90312245]
[1745864915492,4.919,1770.8,1770.6,2.09031225]
[1745864918087,4.919,1770.8,1770.5,20.90331498]
[1745864918585,4.919,1770.8,1770.5,15.2552]
[1745864918920,4.919,1770.8,1770.5,20.90330858]
[1745864919720,4.919,1770.8,1770.5,15.2552]
[1745864924758,7.93242736,1770.8,1770.5,14.5]
[1745864925040,3.01342736,1770.6,1770.5,14.5]
[1745864925236,0.2421,1770.7,1770.5,14.5]
[1745864926232,4.919,1770.8,1770.5,14.5]
[1745864926644,4.919,1770.8,1770.5,20.91210947]
[1745864926931,4.919,1770.8,1770.5,15.264]
[1745864929732,4.919,1770.8,1770.5,14.5]
[1745864929733,6.03645274,1770.8,1770.5,14.5]
[1745864930245,6.03645274,1770.8,1770.2,0.7518]
[1745864930246,3.25552736,1770.7,1770.2,0.7518]
[1745864930555,9.30552736,1770.7,1770.2,0.7518]
[1745864930730,9.30552736,1770.7,1770.3,14.5]
[1745864935569,6.2921,1770.7,1770.3,14.5]
[1745864935737,9.30552736,1770.7,1770.3,14.5]
[1745864936685,10.83972537,1770.7,1770.3,14.5]
[1745864937879,10.83972537,1770.7,1770.2,6.40086949]
[1745864938178,10.83972537,1770.7,1770.2,6.40067082]
[1745864938377,10.83972537,1770.7,1770.2,20.90067082]
[1745864938582,9.30552736,1770.7,1770.2,20.90067082]
[1745864940081,9.30552736,1770.7,1770.2,15.2518]
[1745864940261,9.30552736,1770.7,1770.2,20.90077342]
[1745864940784,9.30552736,1770.7,1770.2,15.2518]
[1745864941577,9.30552736,1770.7,1770.2,14.5]
[1745864941777,0.93055274,1770.6,1770.2,14.5]
[1745864942489,9.30552736,1770.7,1770.2,20.14896108]
[1745864942694,9.30552736,1770.7,1770.2,20.14907854]
[1745864942865,9.7385458,1770.7,1770.2,20.14907854]
[1745864944410,9.7385458,1770.7,1770.3,5.64874782]
[1745864944991,9.7385458,1770.7,1770.4,14.5]
[1745864945484,11.31604565,1770.7,1770.4,14.5]
[1745864948820,11.31604565,1770.7,1770.2,5.64905932]
[1745864949291,11.31604565,1770.7,1770.3,14.5]
[1745864950328,0.2421,1770.4,1770.3,14.5]
[1745864950483,5.1551,1770.4,1770.3,14.5]
[1745864950816,4.913,1770.4,1770.3,14.5]
[1745864953683,4.913,1770.4,1769.9,12.07986305]
[1745864954025,4.913,1770.4,1769.9,1.9881863]
[1745864954026,3.25552736,1770.3,1769.9,1.9881863]
[1745864954222,0.2421,1770.2,1770.0,14.5]
[1745864954613,0.2421,1770.2,1769.7,6.78335385]
[1745864955018,3.01342736,1769.9,1769.7,0.36779885]
[1745864955231,5.1551,1769.8,1769.3,0.7651]
[1745864955427,3.01342736,1769.7,1769.3,6.41689145]
[1745864955590,3.01342736,1769.7,1769.3,12.06866094]
[1745864955789,3.01342736,1769.7,1769.4,14.5]
[1745864955992,6.57695274,1769.8,1769.4,20.15144609]
[1745864956415,6.57695274,1769.8,1769.4,14.5]
[1745864956621,3.67112263,1769.7,1769.4,14.5]
[1745864959117,4.10076132,1769.7,1769.4,14.5]
[1745864959349,0.2421,1769.6,1769.4,14.5]
[1745864959520,3.01342736,1769.5,1769.4,14.5]
[1745864961961,6.2921,1769.6,1769.4,14.5]
[1745864963062,0.2421,1769.6,1769.4,14.5]
[1745864965051,10.15076132,1769.7,1769.4,14.5]
[1745864965652,4.915,1769.6,1769.4,14.5]
[1745864965858,4.915,1769.6,1769.4,15.3024]
[1745864966452,4.915,1769.6,1769.4,20.95397758]
[1745864967167,4.915,1769.6,1769.4,15.3024]
[1745864969210,4.915,1769.6,1769.4,14.5]
[1745864973528,3.25552736,1769.5,1769.4,14.5]
[1745864973691,6.25552736,1769.5,1769.0,0.8253]
[1745864974062,3.25552736,1769.3,1768.9,0.8253]
[1745864974323,3.25552736,1769.3,1768.9,15.3253]
[1745864974324,4.911,1769.2,1768.9,15.3253]
[1745864976435,4.911,1769.2,1768.9,14.5]
[1745864976734,5.72765274,1769.2,1768.9,14.5]
[1745864977104,3.25552736,1769.1,1768.9,14.5]
[1745864977720,9.30552736,1769.1,1768.9,14.5]
[1745864979130,9.72282576,1769.1,1768.9,14.5]
[1745864979627,9.72282576,1769.1,1768.7,0.8154]
[1745864979919,10.48069426,1769.1,1768.7,0.8154]
[1745864980225,10.48069426,1769.1,1768.8,14.5]
[1745864982627,0.2421,1769.0,1768.8,14.5]
[1745864984124,4.18859426,1769.1,1768.8,14.5]
[1745864984125,3.6593984,1769.1,1768.8,14.5]
[1745864984327,3.0,1769.1,1768.8,14.5]
[1745864984626,3.0,1769.1,1768.8,22.94505223]
[1745864984790,4.913,1769.0,1768.8,22.94505223]
[1745864985230,4.913,1769.0,1768.8,17.2916658]
[1745864985428,4.913,1769.0,1768.8,22.94506916]
[1745864985635,4.913,1769.0,1768.8,17.2916658]
[1745864985799,4.913,1769.0,1768.8,15.2763]
[1745864985994,4.913,1769.0,1768.8,14.5]
[1745864986396,4.913,1769.0,1768.4,6.48258055]
[1745864986397,3.01342736,1768.9,1768.4,6.48258055]
[1745864986813,3.01342736,1768.9,1768.5,14.5]
[1745864987138,4.4352801,1768.9,1768.5,14.5]
[1745864989329,3.01342736,1768.9,1768.5,20.15446401]
[1745864989948,3.01342736,1768.9,1768.5,20.15433429]
[1745864989949,3.0,1768.9,1768.5,20.15433429]
[1745864990455,3.0,1768.9,1768.5,20.15429503]
[1745864991572,3.0,1768.9,1768.6,5.65405288]
[1745864991733,3.0,1768.9,1768.7,0.8275]
[1745864992363,11.2051,1769.0,1768.8,14.5]
[1745864993379,6.05,1769.0,1768.8,14.5]
[1745864993548,4.913,1768.9,1768.8,20.15351453]
[1745864993744,4.913,1768.9,1768.8,14.5]
[1745864996449,6.05,1769.0,1768.9,5.65323082]
[1745864996696,6.05,1769.0,1768.8,22.81691263]
[1745864996875,6.05,1769.0,1768.9,5.65323082]
[1745864997404,6.05,1769.0,1768.8,5.65342686]